bitfinex/quotes_SOLUSD_20220114
["timestamp","ask_amount","ask_price","bid_price","bid_amount"]
[1642124638442,2.971,147.02,146.94,34.9687]
[1642124638844,0.25,147.02,146.94,34.9687]
[1642124639544,0.25,147.02,146.94,35.2287]
[1642124639742,40.22988137,147.05,146.94,45.1749]
[1642124641142,50.43568137,147.05,146.94,45.1749]
[1642124641643,50.69568137,147.05,146.94,45.1749]
[1642124642643,40.48988137,147.05,146.94,45.1749]
[1642124644346,8.971,147.05,146.94,45.1749]
[1642124644546,8.971,147.05,146.94,45.4349]
[1642124644746,8.971,147.05,146.94,51.4349]
[1642124645449,8.721,147.05,146.94,53.08489521]
[1642124645647,6.0,147.05,146.96,27.83620886]
[1642124645847,6.0,147.05,146.98,10.2029]
[1642124646048,0.25,147.05,146.98,10.4529]
[1642124646349,0.25,147.05,146.99,27.0931462]
[1642124646547,0.25,147.05,146.99,30.0631462]
[1642124646950,0.25,147.08,147.0,10.202]
[1642124647349,2.72,147.1,147.0,35.3423]
[1642124647550,8.97,147.1,147.0,35.3423]
[1642124648350,8.97,147.1,147.0,35.0823]
[1642124648552,8.72,147.1,147.01,9.78]
[1642124648752,6.0,147.1,147.03,10.1995]
[1642124648952,0.07,147.11,147.03,10.4495]
[1642124649356,0.07,147.11,147.03,10.1995]
[1642124649852,0.07,147.11,147.03,10.4495]
[1642124650052,2.789,147.11,147.03,10.4495]
[1642124650252,0.07,147.11,147.03,10.4495]
[1642124650454,6.58,147.11,147.03,10.4495]
[1642124650654,0.58,147.11,147.03,10.4495]
[1642124650955,0.32,147.11,147.03,10.4495]
[1642124651554,0.07,147.11,147.03,10.4495]
[1642124657689,0.07,147.11,147.04,2.719]
[1642124657892,0.07,147.11,147.04,12.499]
[1642124658091,0.07,147.11,147.06,10.1975]
[1642124658493,0.07,147.11,147.06,10.4475]
[1642124658694,0.07,147.11,147.06,36.32697297]
[1642124659796,0.07,147.11,147.06,36.06697297]
[1642124660394,0.07,147.11,147.06,10.4475]
[1642124662595,0.07,147.11,147.06,10.7075]
[1642124662795,0.07,147.11,147.06,10.4475]
[1642124662996,0.07,147.11,147.06,10.7075]
[1642124663696,0.07,147.11,147.06,39.05619699]
[1642124664096,0.07,147.11,147.06,10.7075]
[1642124664499,0.07,147.11,147.06,19.4265]
[1642124664695,0.07,147.11,147.06,13.1665]
[1642124665499,0.07,147.11,147.06,10.4475]
[1642124666700,0.07,147.11,147.06,7.8255]
[1642124667097,0.07,147.11,147.08,10.1962]
[1642124667500,0.07,147.11,147.08,10.4462]
[1642124668298,25.3893,147.17,147.08,10.4462]
[1642124673705,31.3893,147.17,147.08,10.4462]
[1642124674305,25.3893,147.17,147.08,10.4462]
[1642124674702,31.3893,147.17,147.08,10.4462]
[1642124675205,25.3893,147.17,147.08,10.4462]
[1642124676208,8.57205603,147.16,147.08,10.4462]
[1642124676507,9.08205603,147.16,147.09,2.718]
[1642124676906,9.08205603,147.16,147.09,2.968]
[1642124677407,0.51,147.16,147.09,2.968]
[1642124677609,0.25,147.16,147.09,2.968]
[1642124677812,25.3893,147.17,147.09,2.968]
[1642124678008,25.1293,147.17,147.09,0.25]
[1642124678209,25.1293,147.17,147.08,36.9022]
[1642124680214,25.3893,147.17,147.08,36.9022]
[1642124680914,25.3893,147.17,147.08,36.6522]
[1642124681141,31.3893,147.17,147.08,36.6522]
[1642124682343,31.3893,147.17,147.08,36.9022]
[1642124682544,6.0,147.17,147.08,36.9022]
[1642124682744,6.25,147.17,147.08,37.1622]
[1642124683344,6.25,147.17,147.08,46.9422]
[1642124683745,0.25,147.17,147.08,46.9422]
[1642124683946,31.31115044,147.18,147.08,46.9422]
[1642124684145,31.31115044,147.18,147.08,46.6822]
[1642124684347,31.31115044,147.18,147.08,46.4322]
[1642124684750,2.718,147.17,147.08,2.718]
[1642124684949,17.514,147.17,147.08,2.718]
[1642124685147,17.514,147.17,147.04,9.78]
[1642124685148,69.23999521,147.16,147.04,9.78]
[1642124685347,26.484,147.15,147.02,33.1445]
[1642124685551,8.797156,147.14,147.02,33.3945]
[1642124685749,12.9195,147.13,147.02,43.5947]
[1642124685948,24.1779,147.12,147.02,43.5947]
[1642124686147,23.15509418,147.11,147.02,43.5947]
[1642124686647,23.66509418,147.11,147.02,43.5947]
[1642124687949,29.66509418,147.11,147.02,43.5947]
[1642124688549,32.38409418,147.11,147.02,43.5947]
[1642124691766,47.88539418,147.11,147.02,33.3945]
[1642124694356,47.88539418,147.11,147.02,10.03]
[1642124694556,47.88539418,147.11,147.02,0.25]
[1642124694756,90.7997,147.1,147.02,0.25]
[1642124694956,90.7997,147.1,147.0,34.7178]
[1642124694957,2.719,147.09,147.0,34.7178]
[1642124695157,10.2028,147.09,147.0,34.7178]
[1642124695357,10.44321226,147.08,147.0,34.7178]
[1642124695558,16.69321226,147.08,147.01,2.72]
[1642124695760,16.95321226,147.08,147.01,2.72]
[1642124695956,16.95321226,147.08,147.01,2.97]
[1642124696957,16.95321226,147.08,147.01,0.25]
[1642124697158,16.95321226,147.08,147.0,37.4378]
[1642124697559,41.30821226,147.08,147.0,37.4378]
[1642124697961,49.19121226,147.08,147.0,2.72]
[1642124698163,2.72,147.07,146.99,24.412]
[1642124698560,8.97,147.07,146.99,24.412]
[1642124698964,6.25,147.07,146.99,24.672]
[1642124699158,2.72,147.1,147.0,12.5]
[1642124699359,2.72,147.11,147.0,12.5]
[1642124699560,0.25,147.11,147.01,24.7149]
[1642124699958,0.25,147.11,147.01,54.89973153]
[1642124700161,24.4923,147.11,147.01,54.89973153]
[1642124700359,24.4923,147.11,147.02,9.78]
[1642124700561,2.719,147.1,147.02,10.03]
[1642124700962,2.969,147.1,147.02,10.03]
[1642124701560,3.229,147.1,147.02,10.03]
[1642124701960,0.51,147.1,147.02,10.03]
[1642124702163,43.6729,147.11,147.02,10.03]
[1642124702562,43.6729,147.11,147.02,0.25]
[1642124702763,43.4129,147.11,147.01,24.9649]
[1642124702962,33.2113,147.11,147.01,24.9649]
[1642124703161,33.2113,147.11,147.02,9.78]
[1642124703965,33.2113,147.11,147.02,19.9805]
[1642124704168,33.4713,147.11,147.02,19.9805]
[1642124704568,33.4713,147.11,147.02,20.2305]
[1642124704767,33.4713,147.11,147.02,48.16360556]
[1642124705166,27.2213,147.11,147.02,48.16360556]
[1642124705365,24.5023,147.11,147.02,48.16360556]
[1642124705565,24.7523,147.11,147.02,46.4632723]
[1642124705966,24.7523,147.11,147.02,18.53016674]
[1642124706172,40.9531,147.11,147.02,8.07966674]
[1642124706466,2.719,147.1,147.01,28.61237499]
[1642124706867,9.229,147.1,147.01,28.61237499]
[1642124707167,50.70586489,147.1,147.01,24.7149]
[1642124707566,50.70586489,147.1,147.01,24.9649]
[1642124707967,50.70586489,147.1,147.01,34.7449]
[1642124709470,7.5352209,147.06,147.01,34.7449]
[1642124709670,15.07051641,147.06,147.01,10.03]
[1642124709870,15.33051641,147.06,147.01,10.03]
[1642124710474,15.33051641,147.06,147.01,0.25]
[1642124710677,15.33051641,147.06,147.0,2.97]
[1642124711778,22.47951641,147.06,147.0,2.72]
[1642124711978,22.47951641,147.06,146.99,2.72]
[1642124711979,28.72951641,147.06,146.99,2.72]
[1642124712178,38.93391641,147.06,146.98,38.51787499]
[1642124712580,38.93391641,147.06,146.98,34.6204]
[1642124713079,38.93391641,147.06,146.98,34.8704]
[1642124713280,38.93391641,147.06,146.98,34.6204]
[1642124713780,38.93391641,147.06,146.98,24.8404]
[1642124713983,37.43391641,147.06,146.98,24.8404]
[1642124714382,31.39869551,147.06,146.98,24.8404]
[1642124714583,23.8634,147.06,146.96,6.61747499]
[1642124714781,13.57051641,147.02,146.96,6.61747499]
[1642124715012,19.83051641,147.02,146.96,6.86747499]
[1642124715411,13.83051641,147.02,146.96,6.86747499]
[1642124715813,13.83051641,147.02,146.96,2.97]
[1642124716211,13.83051641,147.02,146.96,13.1748]
[1642124717013,13.83051641,147.02,146.96,10.4548]
[1642124719716,7.79529551,147.02,146.96,10.4548]
[1642124720017,13.57051641,146.99,146.96,10.4548]
[1642124720417,13.83051641,146.99,146.96,10.4548]
[1642124721821,13.83051641,146.99,146.96,0.25]
[1642124722119,13.83051641,146.99,146.95,16.64847499]
[1642124722520,13.57051641,146.99,146.95,16.90847499]
[1642124722723,13.57051641,146.99,146.96,3.89893314]
[1642124722920,0.00051641,146.99,146.97,9.78]
[1642124723320,0.00051641,146.99,146.97,16.29]
[1642124723820,0.00051641,146.99,146.97,10.29]
[1642124724221,0.00051641,146.99,146.97,19.011]
[1642124724621,0.00051641,146.99,146.97,13.011]
[1642124724823,0.00051641,146.99,146.97,23.2135]
[1642124725022,0.00051641,146.99,146.97,29.2135]
[1642124725222,2.971,147.06,146.97,57.51495373]
[1642124725421,2.971,147.06,146.97,54.79395373]
[1642124725422,3.231,147.06,146.97,54.79395373]
[1642124725823,3.231,147.06,146.98,3.89834425]
[1642124726022,3.231,147.06,146.98,10.40834425]
[1642124726322,3.231,147.06,147.0,10.2015]
[1642124726522,3.231,147.06,147.0,10.4515]
[1642124729324,12.92980522,147.06,147.0,10.2015]
[1642124729526,12.92980522,147.06,147.0,10.4515]
[1642124730125,12.92980522,147.06,146.98,34.321]
[1642124730325,51.29060522,147.06,146.98,0.25]
[1642124731126,61.49490522,147.06,146.98,0.32]
[1642124731529,61.49490522,147.06,146.98,0.07]
[1642124733754,61.49490522,147.06,146.98,2.0195222]
[1642124733954,61.49490522,147.06,146.98,2.2695222]
[1642124736155,34.0708,147.06,146.98,2.2695222]
[1642124737359,34.0708,147.06,146.98,29.25323286]
[1642124737560,6.51,147.06,146.99,1.9495222]
[1642124737758,6.26,147.06,147.0,0.07]
[1642124738358,0.26,147.06,147.0,0.07]
[1642124738657,25.2374,147.07,147.0,2.0195222]
[1642124738857,31.2374,147.07,147.01,31.64340156]
[1642124739057,25.2374,147.07,147.01,31.89340156]
[1642124739962,25.2374,147.07,147.01,0.25]
[1642124740161,25.4874,147.07,147.01,10.2008]
[1642124740560,25.4874,147.07,147.01,10.4508]
[1642124742364,0.25,147.07,147.01,10.4508]
[1642124742565,28.99184389,147.09,147.01,20.2308]
[1642124742762,26.27184389,147.09,147.01,20.2308]
[1642124743365,24.4382,147.09,147.02,29.52560664]
[1642124743564,0.25,147.09,147.04,10.1991]
[1642124743765,0.26,147.09,147.04,10.1991]
[1642124743964,8.09364389,147.1,147.04,10.4491]
[1642124744164,1.83364389,147.1,147.05,25.00151973]
[1642124744467,1.83364389,147.1,147.05,25.25151973]
[1642124744666,1.83364389,147.1,147.05,25.00151973]
[1642124745267,1.83364389,147.12,147.05,35.19971973]
[1642124745467,2.09364389,147.12,147.05,35.19971973]
[1642124745870,2.09364389,147.12,147.05,35.44971973]
[1642124746067,2.34364389,147.12,147.05,35.44971973]
[1642124746366,2.08364389,147.12,147.05,35.44971973]
[1642124746565,2.08364389,147.12,147.05,45.22971973]
[1642124746566,1.83364389,147.12,147.05,45.22971973]
[1642124746766,1.83364389,147.12,147.09,10.1956]
[1642124746967,1.83364389,147.12,147.09,10.4456]
[1642124747574,1.83364389,147.14,147.09,10.4456]
[1642124747772,1.83364389,147.14,147.09,13.1636]
[1642124748169,1.83364389,147.14,147.09,13.4236]
[1642124748369,1.83364389,147.14,147.1,9.78]
[1642124748570,2.718,147.19,147.1,9.78]
[1642124748571,1.83364389,147.16,147.12,36.57698149]
[1642124748975,1.83364389,147.16,147.12,36.82698149]
[1642124749170,1.83364389,147.16,147.12,46.60698149]
[1642124749371,1.83364389,147.16,147.13,0.07]
[1642124749574,1.83364389,147.16,147.13,2.788]
[1642124750075,1.83364389,147.17,147.13,3.038]
[1642124750475,1.83364389,147.17,147.14,10.1918]
[1642124750676,1.83364389,147.17,147.15,24.05608267]
[1642124751173,1.83364389,147.19,147.15,24.30608267]
[1642124751573,1.83364389,147.19,147.15,34.49728267]
[1642124751775,1.83364389,147.19,147.15,34.75728267]
[1642124751973,1.83364389,147.19,147.15,40.75728267]
[1642124752174,1.83364389,147.2,147.15,40.75728267]
[1642124752407,1.83364389,147.2,147.15,34.75728267]
[1642124752581,1.83364389,147.2,147.15,40.75728267]
[1642124752874,1.83364389,147.2,147.15,40.49728267]
[1642124753174,1.83364389,147.2,147.15,40.75728267]
[1642124753575,2.09364389,147.2,147.15,40.75728267]
[1642124754376,2.09364389,147.2,147.15,34.75728267]
[1642124754674,0.26,147.2,147.15,43.47428267]
[1642124754877,0.26,147.2,147.15,34.75728267]
[1642124755075,2.09364389,147.21,147.15,34.75728267]
[1642124755378,2.09364389,147.21,147.15,34.49728267]
[1642124755576,2.09364389,147.21,147.15,40.49728267]
[1642124755974,1.83364389,147.21,147.16,9.78]
[1642124756173,1.83364389,147.21,147.18,10.1885]
[1642124756574,1.83364389,147.21,147.18,10.6985]
[1642124756776,1.83364389,147.21,147.18,20.4785]
[1642124756975,1.83364389,147.21,147.19,26.06763287]
[1642124757174,1.83364389,147.21,147.2,39.187]
[1642124757374,1.83364389,147.22,147.2,39.187]
[1642124757574,1.83364389,147.22,147.2,39.437]
[1642124758078,1.83364389,147.22,147.2,49.217]
[1642124758274,1.83364389,147.22,147.2,49.477]
[1642124758477,6.29742393,147.27,147.21,46.0]
[1642124758678,3.58042393,147.27,147.24,10.1846]
[1642124759076,3.58042393,147.27,147.25,0.07]
[1642124759277,3.58042393,147.27,147.25,26.86392118]
[1642124759476,3.58042393,147.27,147.25,27.11392118]
[1642124759678,3.58042393,147.27,147.25,37.22842118]
[1642124759980,3.58042393,147.3,147.22,9.78]
[1642124760178,3.58042393,147.3,147.21,2.716]
[1642124760179,0.26,147.27,147.21,2.716]
[1642124760380,2.716,147.26,147.21,2.716]
[1642124760582,26.3104,147.29,147.21,2.966]
[1642124760780,0.26,147.26,147.21,2.966]
[1642124761377,2.716,147.27,147.21,0.25]
[1642124761579,2.966,147.27,147.2,9.78]
[1642124761777,2.966,147.27,147.17,9.78]
[1642124761778,14.642,147.27,147.17,9.78]
[1642124762578,48.0847,147.27,147.18,29.40458016]
[1642124762779,3.58042393,147.25,147.18,29.40458016]
[1642124762982,4.09042393,147.25,147.18,29.65458016]
[1642124763282,3.84042393,147.25,147.18,29.65458016]
[1642124763481,3.84042393,147.25,147.18,29.91458016]
[1642124763780,0.26,147.25,147.18,49.88348016]
[1642124763980,2.717,147.25,147.18,55.88348016]
[1642124764181,20.89287372,147.26,147.18,55.88348016]
[1642124764385,20.89287372,147.26,147.18,45.69458016]
[1642124764580,20.89287372,147.26,147.18,39.18458016]
[1642124764581,22.99752393,147.26,147.18,39.18458016]
[1642124764880,22.99752393,147.26,147.18,9.78]
[1642124765082,22.99752393,147.26,147.15,2.717]
[1642124765280,22.99752393,147.26,147.15,2.967]
[1642124765683,22.99752393,147.26,147.15,2.717]
[1642124765886,3.58042393,147.24,147.16,24.97814431]
[1642124766080,12.55742393,147.24,147.16,24.97814431]
[1642124766280,6.55742393,147.24,147.16,34.75814431]
[1642124767082,2.977,147.24,147.16,35.00814431]
[1642124767281,0.26,147.24,147.16,45.19844431]
[1642124767481,9.84042393,147.25,147.16,53.10843952]
[1642124767681,9.58042393,147.25,147.16,53.10843952]
[1642124768083,6.0,147.25,147.16,53.10843952]
[1642124768282,6.0,147.25,147.17,67.59]
[1642124768586,9.58042393,147.26,147.22,28.98765753]
[1642124768786,6.0,147.26,147.22,28.98765753]
[1642124768984,29.2532,147.27,147.22,29.23765753]
[1642124769184,6.0,147.27,147.22,29.23765753]
[1642124769583,9.58042393,147.28,147.23,2.716]
[1642124769786,6.0,147.28,147.25,27.85581024]
[1642124769991,3.58042393,147.29,147.25,28.10581024]
[1642124769992,9.58042393,147.29,147.25,28.10581024]
[1642124770385,3.58042393,147.29,147.25,28.10581024]
[1642124770585,3.58042393,147.29,147.25,28.36581024]
[1642124770786,3.58042393,147.3,147.25,44.55011024]
[1642124770986,3.58042393,147.3,147.26,9.78]
[1642124771386,3.58042393,147.3,147.26,16.29]
[1642124771987,27.1009,147.39,147.26,16.29]
[1642124771988,3.58042393,147.35,147.26,16.29]
[1642124772286,0.26,147.34,147.29,29.14570245]
[1642124772486,0.26,147.34,147.29,29.65570245]
[1642124772687,0.26,147.34,147.29,39.43570245]
[1642124772886,3.84042393,147.35,147.29,39.17570245]
[1642124774286,3.58042393,147.35,147.3,10.1807]
[1642124774488,3.58042393,147.35,147.3,16.6907]
[1642124774786,3.58042393,147.35,147.31,9.78]
[1642124774988,3.58042393,147.35,147.31,10.29]
[1642124775188,3.58042393,147.35,147.33,10.1786]
[1642124775389,3.58042393,147.35,147.34,46.78]
[1642124775587,3.58042393,147.35,147.34,88.3677]
[1642124775788,3.58042393,147.35,147.34,94.6277]
[1642124775988,3.58042393,147.35,147.34,17.45]
[1642124776193,3.58042393,147.38,147.34,9.78]
[1642124776391,2.714,147.37,147.34,9.78]
[1642124776689,2.964,147.37,147.34,9.78]
[1642124776987,3.224,147.37,147.34,9.78]
[1642124777691,6.06430001,147.36,147.34,9.78]
[1642124777990,6.32430001,147.36,147.34,9.78]
[1642124778191,6.32430001,147.36,147.3,9.78]
[1642124778691,6.32430001,147.36,147.3,16.03]
[1642124778891,3.29210004,147.36,147.3,16.03]
[1642124779089,0.26,147.36,147.3,16.03]
[1642124779290,0.26,147.36,147.3,26.2109]
[1642124779491,3.58042393,147.37,147.3,26.2109]
[1642124779899,4.09042393,147.37,147.3,26.2109]
[1642124780497,7.98239322,147.37,147.3,26.2109]
[1642124780897,7.72239322,147.37,147.3,26.2109]
[1642124781096,7.72239322,147.37,147.3,33.3439]
[1642124781295,3.83042393,147.37,147.3,33.6039]
[1642124781498,3.58042393,147.37,147.31,0.07]
[1642124781698,3.58042393,147.37,147.34,10.178]
[1642124781897,3.58042393,147.37,147.35,0.07]
[1642124782100,3.58042393,147.39,147.35,0.07]
[1642124782300,3.58042393,147.39,147.35,7.669]
[1642124782522,3.58042393,147.39,147.36,22.87145831]
[1642124782722,3.58042393,147.39,147.37,10.1759]
[1642124783121,3.58042393,147.39,147.37,10.4259]
[1642124783321,7.47145969,147.4,147.37,10.4259]
[1642124784425,7.47145969,147.4,147.37,20.4659]
[1642124784623,5.2921916,147.44,147.37,26.4659]
[1642124784824,5.2921916,147.44,147.37,28.11589521]
[1642124785825,8.0051916,147.49,147.37,28.11589521]
[1642124786127,14.2651916,147.49,147.37,28.11589521]
[1642124786324,14.5151916,147.49,147.37,28.11589521]
[1642124786730,14.5151916,147.49,147.38,67.59]
[1642124786927,14.5151916,147.49,147.4,24.23640427]
[1642124787126,11.8021916,147.49,147.43,10.1717]
[1642124787329,11.8021916,147.49,147.44,29.91782407]
[1642124787527,11.5421916,147.49,147.44,30.16782407]
[1642124788626,5.2921916,147.49,147.44,40.33912407]
[1642124788828,5.2921916,147.49,147.44,56.37912407]
[1642124789226,5.2921916,147.49,147.45,2.712]
[1642124789625,5.2921916,147.49,147.45,3.222]
[1642124790025,5.2921916,147.49,147.47,10.1683]
[1642124790227,31.9239916,147.55,147.48,29.30052785]
[1642124790429,8.0041916,147.55,147.48,29.30052785]
[1642124790630,14.5141916,147.55,147.48,29.30052785]
[1642124790829,14.5141916,147.55,147.44,12.492]
[1642124791029,16.16418681,147.55,147.44,12.742]
[1642124791228,26.33418681,147.55,147.44,12.742]
[1642124791427,24.6841916,147.55,147.44,12.742]
[1642124791830,55.39264021,147.55,147.44,12.742]
[1642124792429,63.16931933,147.55,147.44,12.742]
[1642124793031,63.16931933,147.55,147.44,10.03]
[1642124793431,10.1728,147.51,147.44,10.03]
[1642124793632,2.712,147.5,147.44,10.03]
[1642124794033,8.962,147.5,147.44,10.03]
[1642124794432,8.962,147.5,147.44,9.78]
[1642124794433,16.4231,147.5,147.44,9.78]
[1642124794634,16.4231,147.5,147.39,12.492]
[1642124794935,2.712,147.49,147.36,2.712]
[1642124795333,30.70844861,147.48,147.36,2.712]
[1642124795534,2.713,147.47,147.35,6.0]
[1642124795735,10.1779,147.43,147.34,34.97062677]
[1642124796135,10.6879,147.43,147.34,35.22062677]
[1642124797439,10.6879,147.43,147.34,45.39872677]
[1642124797735,0.51,147.43,147.35,0.07]
[1642124797936,3.223,147.44,147.36,2.713]
[1642124798134,9.223,147.44,147.36,2.713]
[1642124798334,9.223,147.44,147.37,27.95705498]
[1642124798535,6.51,147.44,147.37,27.95705498]
[1642124798735,6.51,147.44,147.38,10.1755]
[1642124798935,6.51,147.44,147.37,27.95705498]
[1642124799741,0.51,147.44,147.36,0.25]
[1642124799944,16.1776,147.44,147.35,19.1404]
[1642124800441,16.6876,147.44,147.35,8.963]
[1642124801043,26.29829128,147.43,147.35,2.963]
[1642124801244,29.01129128,147.43,147.35,2.713]
[1642124801449,10.1796,147.41,147.35,2.713]
[1642124801844,10.4296,147.41,147.35,2.713]
[1642124802143,10.01401516,147.4,147.35,2.713]
[1642124802449,10.1831,147.38,147.27,9.78]
[1642124802644,2.715,147.37,147.27,12.494]
[1642124802844,2.715,147.37,147.27,9.78]
[1642124803046,2.965,147.37,147.27,9.78]
[1642124803246,0.25,147.37,147.27,10.03]
[1642124803443,0.25,147.37,147.28,2.715]
[1642124803444,2.715,147.36,147.28,2.715]
[1642124803643,2.715,147.36,147.27,34.20691964]
[1642124803843,2.965,147.36,147.27,34.20691964]
[1642124804044,10.1839,147.35,147.27,34.20691964]
[1642124804246,10.1839,147.35,147.27,36.92191964]
[1642124804443,10.4339,147.35,147.27,36.92191964]
[1642124805245,10.6939,147.35,147.27,36.92191964]
[1642124805647,10.6939,147.35,147.27,36.67191964]
[1642124806449,16.6939,147.35,147.27,36.67191964]
[1642124807048,16.6939,147.35,147.27,36.92191964]
[1642124807649,16.6939,147.35,147.27,12.745]
[1642124808249,16.6939,147.35,147.27,10.03]
[1642124809252,16.6939,147.35,147.28,29.24698928]
[1642124809449,16.6939,147.35,147.28,29.49698928]
[1642124812153,0.51,147.35,147.28,29.49698928]
[1642124812352,0.25,147.35,147.28,29.75698928]
[1642124812556,42.6185,147.37,147.28,29.75698928]
[1642124812764,29.7205,147.37,147.28,29.75698928]
[1642124812958,29.7205,147.37,147.28,45.53698928]
[1642124813761,29.9805,147.37,147.28,55.71928928]
[1642124814459,29.9805,147.37,147.28,49.71928928]
[1642124816883,32.6955,147.37,147.28,49.71928928]
[1642124818085,29.9805,147.37,147.29,2.715]
[1642124818287,32.6945,147.37,147.29,22.6764]
[1642124818486,32.6945,147.37,147.29,23.1864]
[1642124819186,42.8771,147.37,147.29,10.03]
[1642124821689,40.1631,147.37,147.29,10.03]
[1642124821888,40.1631,147.37,147.29,0.25]
[1642124822087,40.1631,147.37,147.28,29.49698928]
[1642124823693,40.1631,147.37,147.28,32.21198928]
[1642124825696,1.69779286,147.36,147.28,32.21198928]
[1642124826094,8.20779286,147.36,147.28,32.21198928]
[1642124826594,18.39099286,147.36,147.28,32.21198928]
[1642124827492,18.39099286,147.36,147.28,0.25]
[1642124827994,18.39099286,147.36,147.26,2.965]
[1642124828498,18.39099286,147.36,147.27,25.57110749]
[1642124828695,18.39099286,147.36,147.28,2.715]
[1642124829096,18.39099286,147.36,147.28,2.965]
[1642124829097,18.13099286,147.36,147.28,2.965]
[1642124829296,7.94779286,147.36,147.28,12.745]
[1642124829898,7.94779286,147.36,147.28,22.9273]
[1642124830500,8.20779286,147.36,147.28,22.9273]
[1642124831199,8.20779286,147.36,147.28,12.745]
[1642124832201,18.39109286,147.36,147.28,12.745]
[1642124832805,8.20779286,147.36,147.28,12.745]
[1642124833708,8.20779286,147.36,147.28,22.9273]
[1642124834611,7.95779286,147.36,147.28,22.9273]
[1642124836539,7.95779286,147.36,147.28,12.745]
[1642124836737,8.20779286,147.36,147.28,12.745]
[1642124837535,8.20779286,147.36,147.28,22.9273]
[1642124842947,14.95101187,147.36,147.28,22.9273]
[1642124843148,14.95101187,147.36,147.28,10.03]
[1642124843350,14.95101187,147.36,147.26,2.715]
[1642124843553,2.715,147.35,147.25,34.055]
[1642124843748,1.69779286,147.34,147.25,34.305]
[1642124843951,2.715,147.33,147.25,34.305]
[1642124844448,9.225,147.33,147.25,34.305]
[1642124845250,19.4109,147.33,147.25,34.305]
[1642124846553,19.4109,147.33,147.25,34.055]
[1642124846751,1.69779286,147.32,147.25,34.305]
[1642124846950,2.20779286,147.32,147.25,34.305]
[1642124847550,12.39379286,147.32,147.25,34.305]
[1642124848250,18.39379286,147.32,147.25,34.305]
[1642124851952,12.13379286,147.32,147.25,34.305]
[1642124852357,1.94779286,147.32,147.25,34.305]
[1642124852958,1.69779286,147.32,147.25,34.565]
[1642124853258,1.69779286,147.32,147.25,42.21499521]
[1642124853690,1.69779286,147.32,147.25,36.21499521]
[1642124853989,1.95779286,147.32,147.25,42.21499521]
[1642124854189,1.95779286,147.32,147.25,52.39939521]
[1642124854587,1.95779286,147.32,147.26,2.715]
[1642124854787,1.95779286,147.32,147.26,12.495]
[1642124854988,1.95779286,147.32,147.27,1.64999521]
[1642124855189,1.69779286,147.32,147.28,2.715]
[1642124855390,1.69779286,147.32,147.28,22.6772]
[1642124855589,1.69779286,147.32,147.28,29.1872]
[1642124855790,1.69779286,147.36,147.28,29.1872]
[1642124855990,7.69779286,147.36,147.28,29.1872]
[1642124856189,7.69779286,147.36,147.29,23.21211852]
[1642124856401,7.69779286,147.36,147.3,10.1807]
[1642124856590,7.69779286,147.36,147.3,10.4307]
[1642124856789,7.94779286,147.36,147.3,10.4307]
[1642124857292,8.20779286,147.36,147.3,10.4307]
[1642124858592,7.95779286,147.36,147.3,10.4307]
[1642124858792,7.95779286,147.36,147.3,28.12069521]
[1642124859096,7.95779286,147.36,147.3,27.86069521]
[1642124859295,7.95779286,147.36,147.3,20.2107]
[1642124863300,7.95779286,147.36,147.3,22.9247]
[1642124865500,7.95779286,147.36,147.3,20.2107]
[1642124868205,1.95779286,147.36,147.3,20.2107]
[1642124868405,1.69779286,147.36,147.3,26.4707]
[1642124868805,1.69779286,147.36,147.3,28.12069521]
[1642124869805,1.69779286,147.36,147.33,10.1772]
[1642124870005,1.69779286,147.36,147.33,16.4272]
[1642124870205,1.69779286,147.36,147.33,13.1412]